fUST/lending_fUST_20240422
["ID","MTS","AMOUNT","RATE_DAILY","PERIOD"]
[323180758,1713780649514,-300.147372,0.00022739,2]
[323180759,1713780649523,-500.0,0.00022739,2]
[323180760,1713780649533,-151.0,0.00022739,2]
[323180761,1713780649543,-500.0,0.00022739,2]
[323180762,1713780649552,-151.0,0.00022739,2]
[323180763,1713780649562,-151.0,0.00022739,2]
[323180764,1713780649572,-151.0,0.00022739,2]
[323180765,1713780649582,-500.0,0.00022739,2]
[323180766,1713780649592,-893.26,0.00022739,2]
[323180767,1713780649601,-2375.69,0.00022739,2]
[323180768,1713780649610,-638.38,0.00022739,2]
[323180769,1713780649619,-1062.28,0.00022739,2]
[323180770,1713780649628,-151.0,0.00022739,2]
[323180771,1713780649637,-151.0,0.00022739,2]
[323180772,1713780649646,-1724.31,0.00022739,2]
[323180773,1713780649655,-958.46,0.00022739,2]
[323180774,1713780649664,-500.0,0.00022739,2]
[323180775,1713780649673,-599.76,0.00022739,2]
[323180776,1713780649683,-500.0,0.00022739,2]
[323180777,1713780649692,-500.0,0.00022739,2]
[323180778,1713780649701,-500.0,0.00022739,2]
[323180779,1713780649709,-653.4,0.00022739,2]
[323180780,1713780649718,-500.0,0.00022739,2]
[323180781,1713780649728,-500.0,0.00022739,2]
[323180782,1713780649737,-500.0,0.00022739,2]
[323180783,1713780649746,-1044.440404,0.00022739,2]
[323180784,1713780649756,-500.0,0.00022739,2]
[323180785,1713780649765,-500.0,0.00022739,2]
[323180786,1713780649774,-500.0,0.00022739,2]
[323180787,1713780649784,-1044.440404,0.00022739,2]
[323180788,1713780649793,-500.0,0.00022739,2]
[323180789,1713780649802,-500.0,0.00022739,2]
[323180790,1713780649811,-500.0,0.00022739,2]
[323180791,1713780649821,-500.0,0.00022739,2]
[323180792,1713780649830,-690.67,0.00022739,2]
[323180793,1713780649839,-151.0,0.00022739,2]
[323180794,1713780649849,-500.0,0.00022739,2]
[323180795,1713780649859,-738.77,0.00022739,2]
[323180796,1713780649868,-176.324762,0.00022739,2]
[323180797,1713780649878,-176.324762,0.00022739,2]
[323180798,1713780649886,-500.0,0.00022739,2]
[323180799,1713780649896,-500.0,0.00022739,2]
[323180800,1713780649906,-3366.16,0.00022739,2]
[323180801,1713780649915,-500.0,0.00022739,2]
[323180802,1713780649926,-2475.93,0.00022739,2]
[323180803,1713780649935,-500.0,0.00022739,2]
[323180804,1713780649945,-500.0,0.00022739,2]
[323180805,1713780649954,-653.8,0.00022739,2]
[323180806,1713780649963,-598.35,0.00022739,2]
[323180807,1713780649972,-475.07545822,0.00022739,2]
[323180808,1713780649981,-643.32,0.00022739,2]
[323180809,1713780649990,-500.0,0.00022739,2]
[323180810,1713780650000,-500.0,0.00022739,2]
[323180811,1713780650009,-2638.28,0.00022739,2]
[323180812,1713780650018,-500.0,0.00022739,2]
[323180813,1713780650027,-500.0,0.00022739,2]
[323180814,1713780650036,-151.0,0.00022739,2]
[323180815,1713780650045,-151.0,0.00022739,2]
[323180816,1713780650054,-513.51,0.00022739,2]
[323180817,1713780650064,-500.0,0.00022739,2]
[323180818,1713780650073,-151.0,0.00022739,2]
[323180819,1713780650083,-500.0,0.00022739,2]
[323180820,1713780650092,-3820.17,0.00022739,2]
[323180821,1713780650101,-164.710514,0.00022739,2]
[323180822,1713780650110,-753.43,0.00022739,2]
[323180823,1713780650119,-500.0,0.00022739,2]
[323180824,1713780650128,-500.0,0.00022739,2]
[323180825,1713780650137,-2568.78,0.00022739,2]
[323180826,1713780650147,-500.0,0.00022739,2]
[323180827,1713780650156,-191.369987,0.00022739,2]
[323180828,1713780650165,-191.369987,0.00022739,2]
[323180829,1713780650175,-500.0,0.00022739,2]
[323180830,1713780650184,-500.0,0.00022739,2]
[323180831,1713780650194,-1900.65,0.00022739,2]
[323180832,1713780650203,-500.0,0.00022739,2]
[323180833,1713780650212,-719.22,0.00022739,2]
[323180834,1713780650221,-500.0,0.00022739,2]
[323180835,1713780650231,-500.0,0.00022739,2]
[323180836,1713780650240,-500.0,0.00022739,2]
[323180837,1713780650249,-500.0,0.00022739,2]
[323180838,1713780650259,-500.0,0.00022739,2]
[323180839,1713780650268,-500.0,0.00022739,2]
[323180840,1713780650277,-500.0,0.00022739,2]
[323180841,1713780650286,-291.842008,0.00022739,2]
[323180842,1713780650296,-500.0,0.00022739,2]
[323180843,1713780650305,-671.74,0.00022739,2]
[323180844,1713780650314,-727.14,0.00022739,2]
[323180845,1713780650323,-500.0,0.00022739,2]
[323180846,1713780650333,-500.0,0.00022739,2]
[323180847,1713780650342,-500.0,0.00022739,2]
[323180848,1713780650351,-500.0,0.00022739,2]
[323180849,1713780650360,-496.73561483,0.00022739,2]
[323180850,1713780650445,-3.26438517,0.00022739,2]
[323180851,1713780650455,-1185.89,0.00022739,2]
[323180852,1713780650465,-153.684932,0.00022739,2]
[323180853,1713780650475,-150.81901718,0.00022996,4]
[323180854,1713780650485,-155.60283886,0.00023,2]
[323180855,1713780650495,-289.00065395,0.00023009,2]
[323180856,1713780650504,-353.78930422,0.0002301,2]
[323180857,1713780650515,-272.27940266,0.0002301,2]
[323180858,1713780650525,-500.0,0.00023013,2]
[323180859,1713780650534,-500.0,0.00023013,2]
[323180860,1713780650544,-500.0,0.00023013,2]
[323180861,1713780650553,-500.0,0.00023013,2]
[323180862,1713780650563,-500.0,0.00023013,2]
[323180863,1713780650573,-500.0,0.00023013,2]
[323180864,1713780650583,-500.0,0.00023013,2]
[323180865,1713780650592,-500.0,0.00023013,2]
[323180866,1713780650602,-500.0,0.00023013,2]
[323180867,1713780650612,-500.0,0.00023013,2]
[323180868,1713780650621,-500.0,0.00023013,2]
[323180869,1713780650631,-500.0,0.00023013,2]
[323180870,1713780650640,-500.0,0.00023013,2]
[323180871,1713780650650,-981.3,0.00023013,2]
[323180872,1713780650661,-500.0,0.00023013,2]
[323180873,1713780650670,-500.0,0.00023013,2]
[323180874,1713780650679,-61.95122229,0.00023013,2]
[323180875,1713780650982,-155.15324954,0.00017997,2]
[323180876,1713780650992,-504.04675046,0.00021917,2]
[323180877,1713780651004,-23.41324954,0.00021917,2]
[323180878,1713780651014,-248.0291819,0.00021917,2]
[323180907,1713780772820,152.62623643,0.00017896,2]
[323180953,1713781064891,6859.68307984,0.000176,2]
[323180954,1713781064922,9000.0,0.000176,2]
[323180955,1713781064949,1143.68905659,0.000176,2]
[323180956,1713781064973,1143.68905659,0.000176,2]
[323180957,1713781064999,1143.68905659,0.000176,2]
[323180958,1713781080189,9000.0,0.000173,2]
[323180959,1713781095150,9000.0,0.00016,2]
[323180960,1713781095182,9000.0,0.00016,2]
[323180961,1713781095213,9000.0,0.00016,2]
[323180962,1713781095244,9000.0,0.00016,2]
[323180963,1713781095275,9000.0,0.00016,2]
[323180970,1713781111815,9000.0,0.000158,2]
[323180991,1713781374352,-435.8134603,0.00019178,4]
[323181018,1713781441311,-3130.60253076,0.00020974,7]
[323181028,1713781504493,14595.60305096,0.00025,30]
[323181068,1713781832448,-300.0,0.00017559,2]
[323181069,1713781832458,-526.24173161,0.00017559,2]
[323181070,1713781832468,-564.41327959,0.0001756,2]
[323181071,1713781832478,-1620.16401568,0.00017561,2]
[323181072,1713781832487,-596.73090927,0.00017562,2]
[323181073,1713781832496,-265.219801,0.00017771,2]
[323181074,1713781832506,-1553.53752727,0.00017971,2]
[323181075,1713781832515,-162.43570051,0.00017996,2]
[323181076,1713781832524,-5285.22999149,0.0001915,2]
[323181077,1713781832533,-300.0,0.00019151,2]
[323181078,1713781832543,-1586.84147999,0.00019151,2]
[323181079,1713781832552,-24900.0,0.00019152,2]
[323181080,1713781832563,-172.452536,0.00019178,2]
[323181081,1713781832573,-736.24781252,0.0002,2]
[323181082,1713781832582,-689.33608369,0.00020757,2]
[323181083,1713781832592,-154.9755911,0.00020758,2]
[323181084,1713781832602,-2000.0,0.00020869,2]
[323181085,1713781832611,-3972.55866369,0.00020966,2]
[323181086,1713781832620,-20555.26031497,0.00020966,2]
[323181123,1713781838086,-596.73090927,0.00017558,2]
[323181124,1713781838096,-63840.27709453,0.00020966,2]
[323181142,1713781840367,-536.54428684,0.00020966,2]
[323182735,1713782026016,-297.845554,0.00020964,7]
[323182736,1713782061617,200.0,0.0002777,120]
[323182752,1713782872372,-283.30931028,0.00018714,2]
[323182753,1713782872397,-1620.16401568,0.00018715,2]
[323182754,1713782872422,-300.0,0.00018719,2]
[323182755,1713782872448,-300.0,0.00018719,2]
[323182756,1713782872473,-11965.88051548,0.0001872,2]
[323182757,1713782872498,-1990.74572883,0.00018721,2]
[323182758,1713782872523,-549.48258406,0.00018724,2]
[323182759,1713782872550,-157.00666973,0.00018724,2]
[323182760,1713782872576,-634.8613603,0.00018724,2]
[323182761,1713782872600,-459.645754,0.00018724,2]
[323182762,1713782872625,-206.02600307,0.00018724,2]
[323182763,1713782872650,-5524.87805857,0.00018726,2]
[323182817,1713783040388,-1620.16401568,0.00018724,2]
[323182818,1713783040397,-300.0,0.00018725,2]
[323182819,1713783040406,-10196.85464997,0.00018726,2]
[323182820,1713783040417,-343.57625226,0.00018726,2]
[323182821,1713783040427,-459.645754,0.00018969,2]
[323182822,1713783040436,-189.15723965,0.0001897,2]
[323182823,1713783040444,-155.31883792,0.00019,2]
[323182824,1713783040453,-168.805312,0.00019178,2]
[323182825,1713783040462,-265.219801,0.00019242,2]
[323182826,1713783040471,-613.53984377,0.0002,2]
[323182827,1713783040480,-154.84515485,0.0002,2]
[323182828,1713783040497,-689.33608369,0.00020596,2]
[323182829,1713783040506,-420.0,0.00020597,2]
[323182830,1713783040515,-1376.33809199,0.00020758,2]
[323182831,1713783040524,-7434.06950669,0.00020758,3]
[323182860,1713783043518,-32273.58543247,0.00020758,3]
[323182885,1713783271225,600.0,0.00012,7]
[323182901,1713783452164,150.81901718,0.00021172,30]
[323182902,1713783452230,150.81901718,0.00020748,120]
[323182965,1713783768996,150.83408251,0.00021328,30]
[323182966,1713783769064,150.83408251,0.00020901,120]
[323182990,1713783836098,10000.0,0.00025,30]
[323183042,1713784232646,-1620.16401568,0.00018563,2]
[323183044,1713784232656,-459.645754,0.00018564,2]
[323183046,1713784232666,-1620.75093527,0.00018569,2]
[323183047,1713784232676,-477.56690442,0.00018587,2]
[323183048,1713784232685,-154.82968734,0.00019,2]
[323183049,1713784232697,-167.3920713,0.0001943,2]
[323183050,1713784232706,-300.0,0.00019997,2]
[323183051,1713784232715,-300.0,0.00019997,2]
[323183052,1713784232724,-154.82968734,0.00019998,2]
[323183053,1713784232733,-7072.13969613,0.00019998,2]
[323183054,1713784232742,-248.01830415,0.00019998,2]
[323183055,1713784232752,-5870.63944868,0.00019999,2]
[323183056,1713784232761,-14767.68288164,0.0002,2]
[323183057,1713784232771,-613.53984377,0.0002,2]
[323183058,1713784232780,-20584.22032229,0.0002,2]
[323183059,1713784232790,-419.39507495,0.000205,2]
[323183060,1713784232798,-2476.44199761,0.00020644,2]
[323183117,1713784240583,-10864.2624825,0.00020643,2]
[323183118,1713784240638,-1561.66564714,0.00020643,2]
[323183135,1713784243954,150.81901718,0.00021986,30]
[323183136,1713784244008,150.81901718,0.00021547,120]
[323183190,1713784633167,150.81901718,0.00021739,30]
[323183191,1713784633227,150.81901718,0.00021304,120]
[323183220,1713784877237,183.36,0.0002777,120]
[323183284,1713785147388,209.9294363,0.00020528,30]
[323183290,1713785295169,150.83408251,0.00021812,30]
[323183337,1713785432733,-459.645754,0.00018883,2]
[323183338,1713785432743,-1620.16401568,0.00018884,2]
[323183339,1713785432752,-154.82968734,0.00019,2]
[323183340,1713785432763,-4863.7122187,0.00019248,2]
[323183341,1713785432772,-154.82968734,0.00019997,2]
[323183342,1713785432782,-300.0,0.00019998,2]
[323183343,1713785432791,-300.0,0.00019998,2]
[323183344,1713785432800,-59148.32683968,0.00019999,2]
[323183345,1713785432809,-319.6542586,0.0002,2]
[323183346,1713785432820,-5458.5886175,0.0002,2]
[323183347,1713785432832,-500.0,0.00020399,2]
[323183348,1713785432842,-579.17947552,0.00020399,2]
[323183349,1713785432852,-1363.87529207,0.000204,2]
[323183350,1713785432865,-82207.24803808,0.00020429,2]
[323183453,1713786098424,-1620.16401568,0.00017492,2]
[323183454,1713786098454,-1193.39088057,0.00017494,2]
[323183455,1713786098484,-163.73491511,0.00017496,2]
[323183456,1713786098516,-300.0,0.00017591,2]
[323183457,1713786098535,-1620.16401568,0.00017591,2]
[323183458,1713786098549,-1193.39088057,0.00017591,2]
[323183459,1713786098560,-163.73491511,0.00017591,2]
[323183460,1713786098571,-300.0,0.00017591,2]
[323183461,1713786098587,-4095.42037728,0.00017591,2]
[323183463,1713786157361,-459.645754,0.00017491,2]
[323183464,1713786157381,-459.645754,0.00017589,2]
[323183465,1713786157397,-1160.51826168,0.00017589,2]
[323183466,1713786157407,-300.0,0.00017589,2]
[323183467,1713786157416,-120.19023032,0.00017589,2]
[323183474,1713786488344,9000.0,0.0001,3]
[323183475,1713786488381,4784.23125225,0.0001,3]
[323183480,1713786555138,-459.645754,0.00016999,2]
[323183481,1713786555157,-256.32313905,0.00017,2]
[323183482,1713786555179,-2007.27610423,0.00017,2]
[323183483,1713786555200,-300.0,0.00017586,2]
[323183484,1713786555219,-300.0,0.00017586,2]
[323183485,1713786555239,-4985.62798152,0.00017587,2]
[323183509,1713786631905,-412.08246365,0.00017585,2]
[323183510,1713786631917,-666.90423784,0.00017585,2]
[323183511,1713786631926,-459.645754,0.00017586,2]
[323183512,1713786631936,-300.0,0.00017586,2]
[323183513,1713786631946,-300.0,0.00017586,2]
[323183514,1713786631955,-54162.69885816,0.00017587,2]
[323183515,1713786631966,-1397.28244877,0.00017588,2]
[323183516,1713786631976,-1826.99758896,0.00017588,2]
[323183517,1713786631986,-34068.38178167,0.00017588,2]
[323183558,1713786637889,-392.51027181,0.00017588,2]
[323183559,1713786637945,-3190.45836968,0.00017588,2]
[323183589,1713786643027,-3286.6,0.00017588,2]
[323183697,1713786862377,1738.17557752,0.000125,2]
[323183702,1713787004975,249.0,0.000125,2]
[323183706,1713787430836,270.4528487,0.00014809,2]
[323183707,1713787597115,-1620.16401568,0.00015792,2]
[323183708,1713787597137,-596.73090927,0.00015793,2]
[323183709,1713787597157,-469.51863427,0.00015793,2]
[323183710,1713787597177,-46.8892622,0.00015794,2]
[323183720,1713787745836,1958.14032153,0.00014744,2]
[323183721,1713787745869,9000.0,0.00014744,2]
[323183722,1713787745902,778.27600897,0.00014744,2]
[323183828,1713787840242,-154.82968734,0.0001568,2]
[323183830,1713787840250,-154.82968734,0.0001568,2]
[323183832,1713787840260,-459.645754,0.00015681,2]
[323183834,1713787840269,-513.35127972,0.0001569,2]
[323183836,1713787840278,-300.0,0.00015797,2]
[323183838,1713787840289,-300.0,0.00015797,2]
[323183840,1713787840298,-72546.85153724,0.00015798,2]
[323183842,1713787840307,-129427.04891027,0.00015799,2]
[323183883,1713787843126,-154.82968734,0.0001568,2]
[323183884,1713787843135,-803.97031266,0.00015799,2]
[323183885,1713787843181,-1304.6505848,0.00015799,2]
[323183886,1713787843192,-1653.8403982,0.00015799,2]
[323183898,1713787846374,-28988.3854841,0.00015799,2]
[323183899,1713787905155,24440.34229618,0.00025,29]
[323183906,1713788034476,600.0,0.00015797,7]
[323183939,1713789025922,268.04,0.0002777,120]
[323183976,1713789038267,-300.0,0.0001567,2]
[323183978,1713789038277,-600.0,0.00015671,2]
[323183980,1713789038286,-1044.21702049,0.000157,2]
[323183981,1713789038296,-300.0,0.00015796,2]
[323183982,1713789038306,-154.86065017,0.00015797,2]
[323183983,1713789038315,-1337.15712559,0.00015797,2]
[323183984,1713789038324,-410.20237313,0.00015797,2]
[323183985,1713789038334,-1551.18637562,0.00015797,2]
[323183986,1713789038346,-344.59268464,0.00015797,2]
[323183987,1713789038357,-5601.98429679,0.00015797,2]
[323183988,1713789038390,-4432.78491809,0.00015797,2]
[323184087,1713789043385,-862.55,0.00015797,2]
[323184088,1713789043397,-866.93371393,0.00015797,2]
[323184089,1713789043406,-155.43472471,0.00015798,2]
[323184090,1713789043415,-184.06519086,0.00015798,2]
[323184093,1713789043441,-1491.11584421,0.00015798,2]
[323184094,1713789043450,-169.03970801,0.00015798,2]
[323184096,1713789043459,-277.86921925,0.00015798,2]
[323184097,1713789043469,-374.14920155,0.00015798,2]
[323184099,1713789043478,-27895.36034511,0.00015799,2]
[323184186,1713789223614,1000.0,0.00023,11]
[323184191,1713790130431,2219.2382924,0.00014798,2]
[323184193,1713790162108,-1577.66906822,0.00015687,2]
[323184194,1713790162129,-500.0,0.00015688,2]
[323184195,1713790162153,-1133.43792552,0.00015699,2]
[323184196,1713790162173,-408.51015166,0.00015797,2]
[323184197,1713790162193,-155.89843383,0.00015797,2]
[323184198,1713790162212,-300.0,0.00015798,2]
[323184199,1713790162232,-300.0,0.00015798,2]
[323184200,1713790162252,-300.0,0.00015798,2]
[323184201,1713790162272,-910.11240229,0.00015799,2]
[323184215,1713790232420,-500.0,0.00015798,2]
[323184216,1713790232430,-1576.28657376,0.00015798,2]
[323184217,1713790232441,-300.0,0.00015798,2]
[323184218,1713790232451,-44863.76354092,0.00015799,2]
[323184276,1713790238427,-1956.43147258,0.00015799,2]
[323184445,1713790240674,-3138.11662995,0.00015799,2]
[323184447,1713790240685,-249.98100902,0.00015799,2]
[323184540,1713790243615,-1025.8805,0.00015799,2]
[323184568,1713790246531,-8732.3095433,0.00015799,2]
[323184569,1713790268819,23745.30886595,0.0002777,120]
[323184570,1713790302470,3373.0,0.00027,120]
[323184577,1713790589695,150.83408251,0.00020701,30]
[323184578,1713790589759,150.83408251,0.00020287,120]
[323184582,1713790671052,154.82968734,0.00012637,2]
[323184583,1713790689008,155.37890246,0.00012637,2]
[323184584,1713790715776,154.82968734,0.00012637,2]
[323184585,1713790719509,154.82968734,0.00012637,2]
[323184586,1713790727623,154.82968734,0.00012637,2]
[323184594,1713790734892,156.59021168,0.00012637,2]
[323184595,1713790735491,154.82968734,0.00012637,2]
[323184596,1713790743620,156.23858438,0.00012637,2]
[323184597,1713790753505,243.16450865,0.00012637,2]
[323184599,1713790794780,4516.96505476,0.000148,2]
[323184601,1713790927676,585.2950188,0.00014348,2]
[323184602,1713791001279,1832.2953117,0.00014348,2]
[323184605,1713791163302,250.0,0.00014239,2]
[323184606,1713791173711,9533.83968332,0.00025,30]
[323184607,1713791196266,406.409832,0.00014239,2]
[323184621,1713791425607,5925.9998375,0.00014239,2]
[323184622,1713791425639,9000.0,0.00014239,2]
[323184623,1713791425672,9000.0,0.00014239,2]
[323184644,1713791432607,-974.0001625,0.00014239,2]
[323184645,1713791432617,-927.5718807,0.00014788,2]
[323184646,1713791432626,-260.5,0.00014789,2]
[323184647,1713791432635,-155.30121314,0.00014798,2]
[323184648,1713791432645,-300.0,0.00014799,2]
[323184649,1713791432655,-300.0,0.00014799,2]
[323184650,1713791432664,-284.97852371,0.00015,2]
[323184651,1713791432674,-1120.31357752,0.00015,2]
[323184652,1713791432683,-156.39625519,0.00015796,2]
[323184653,1713791432692,-671.73119095,0.00015796,2]
[323184654,1713791432705,-229.1553508,0.00015796,2]
[323184655,1713791432717,-184.26950846,0.00015796,2]
[323184656,1713791432726,-1047.41830176,0.00015798,2]
[323184657,1713791432743,-1521.80531458,0.00015798,2]
[323184658,1713791432755,-839.11375686,0.00015798,2]
[323184675,1713791438602,-333.95878176,0.00015798,2]
[323184677,1713791438658,-24573.89482642,0.00015798,2]
[323184733,1713791441024,-848.68961686,0.00015798,2]
[323184735,1713791441039,-3945.38889186,0.00015798,2]
[323185041,1713791443831,-0.02133815,0.00015798,2]
[323185184,1713792573094,-469.51863427,0.00014209,2]
[323185185,1713792573116,-154.84515485,0.00014209,2]
[323185186,1713792573136,-19.25638235,0.0001421,2]
[323185211,1713792631893,-260.5,0.00014257,2]
[323185213,1713792631903,-161.99063186,0.00014257,2]
[323185215,1713792631913,-611.52876814,0.00014258,2]
[323185217,1713792631924,-41.38106596,0.00014258,2]
[323185218,1713792631934,-310.451008,0.00014287,2]
[323185219,1713792631944,-1007.74087099,0.00015,2]
[323185220,1713792631953,-539.67921486,0.00015007,2]
[323185221,1713792631963,-419.39507495,0.000155,2]
[323185222,1713792631972,-174.73599758,0.000156,2]
[323185223,1713792631981,-174.73599757,0.000156,2]
[323185224,1713792631990,-174.73599757,0.00015696,2]
[323185225,1713792631999,-465.64477252,0.00015699,2]
[323185226,1713792632011,-633.48045255,0.00015699,2]
[323185227,1713792632020,-306.0,0.00015741,2]
[323185228,1713792632030,-300.0,0.00015795,2]
[323185229,1713792632039,-300.0,0.00015795,2]
[323185230,1713792632049,-155.49374337,0.00015796,2]
[323185231,1713792632060,-288.1062039,0.00015796,2]
[323185232,1713792632072,-808.15085291,0.00015796,2]
[323185233,1713792632082,-160.12467177,0.00015796,2]
[323185234,1713792632092,-155.19083512,0.00015796,2]
[323185235,1713792632102,-194.21514182,0.00015797,2]
[323185236,1713792632111,-20386.74851953,0.00015798,2]
[323185302,1713792851629,-3130.60253076,0.00018,7]
[323185303,1713792851659,-2608.48264004,0.00021,7]
[323185304,1713792859714,1000.0,0.00027,120]
[323185323,1713792872766,1190.73152473,0.00019992,7]
[323185324,1713792950453,-10000.0,0.00021,5]
[323185326,1713793070750,-524.44715546,0.0002,4]
[323185327,1713793070778,-150.84915085,0.0002148,4]
[323185328,1713793082490,-500.0,0.0002,3]
[323185329,1713793106686,-468.35619814,0.00014241,2]
[323185330,1713793106706,-153.03903881,0.00014242,2]
[323185331,1713793106726,-808.31234139,0.00014339,2]
[323185332,1713793106745,-1620.16401568,0.00014339,2]
[323185333,1713793106764,-549.48258406,0.0001434,2]
[323185334,1713793106784,-927.5718807,0.00014341,2]
[323185335,1713793106806,-55.69246411,0.00014342,2]
[323185336,1713793461680,9000.0,0.00014047,2]
[323185337,1713793553425,468.35619814,0.000139,2]
[323185338,1713793554774,1620.16401568,0.000139,2]
[323185339,1713793557322,549.48258406,0.000139,2]
[323185340,1713793570833,564.41327959,0.000139,2]
[323185341,1713793571027,154.84515485,0.000139,2]
[323185342,1713793591024,154.87609603,0.000139,2]
[323185343,1713793593446,654.6922453,0.00013801,2]
[323185344,1713793596711,469.51863427,0.000139,2]
[323185345,1713793599913,1087.48760315,0.000139,2]
[323185346,1713793600107,596.73090927,0.000139,2]
[323185347,1713793625834,549.48258406,0.000139,2]
[323185348,1713793639959,468.35619814,0.000139,2]
[323185349,1713793657368,564.41327959,0.000139,2]
[323185351,1713793690563,596.73090927,0.000139,2]
[323185352,1713793698502,500.4503086,0.000139,2]
[323185353,1713793747106,-260.5,0.00013899,2]
[323185354,1713793747128,-49.03227546,0.000139,2]
[323185355,1713793747151,-6729.85482454,0.00013902,2]
[323185467,1713793840162,-260.5,0.00013901,2]
[323185468,1713793840173,-277.28571416,0.00013902,2]
[323185469,1713793840481,-858.30956476,0.00013902,2]
[323185470,1713793840492,-610.392743,0.00013904,2]
[323185471,1713793840506,-927.5718807,0.00014,2]
[323185472,1713793840515,-2335.4072932,0.00014047,2]
[323185473,1713793840526,-300.0,0.00014339,2]
[323185474,1713793840535,-300.0,0.00014339,2]
[323185475,1713793840545,-470.92990691,0.0001434,2]
[323185476,1713793840554,-767.01478358,0.0001434,2]
[323185477,1713793840564,-471.55565432,0.0001434,2]
[323185478,1713793840575,-273.30703567,0.0001434,2]
[323185479,1713793840585,-295.52222554,0.0001434,2]
[323185480,1713793840779,-1667.52257095,0.0001434,2]
[323185481,1713793840792,-1482.99597639,0.00014341,2]
[323185482,1713793840801,-4968.15963049,0.00014342,2]
[323185483,1713793840818,-4716.19973424,0.00014342,2]
[323185506,1713793843197,-5847.26995497,0.00014342,2]
[323185507,1713793843208,-2099.05646455,0.00015,2]
[323185508,1713793843217,-419.39507495,0.000155,2]
[323185509,1713793843227,-372.0,0.00015704,2]
[323185510,1713793843236,-420.0,0.00015773,2]
[323185511,1713793843245,-157.69768027,0.00015797,2]
[323185512,1713793843255,-300.0,0.00015797,2]
[323185514,1713793843264,-2486.71527699,0.00015798,2]
[323185517,1713793843288,-88.40607969,0.00015798,2]
[323185518,1713793843298,-211.98635091,0.000158,2]
[323185519,1713793843309,-306.0,0.000158,2]
[323185520,1713793843319,-153.0,0.00015828,2]
[323185521,1713793843331,-153.0,0.000163,2]
[323185522,1713793843343,-407.0406428,0.000163,2]
[323185523,1713793843355,-153.0,0.00016441,2]
[323185524,1713793843366,-407.0406428,0.00016478,2]
[323185525,1713793843376,-93.919338,0.0001665,2]
[323185544,1713794083450,10000.0,0.00025,30]
[323185573,1713794817107,-927.5718807,0.00016411,2]
[323185574,1713794817128,-161.99063186,0.00016411,2]
[323185575,1713794817148,-15.89377304,0.00016412,2]
[323185577,1713794851621,-154.84515485,0.00016409,2]
[323185578,1713794851644,-419.39507495,0.0001641,2]
[323185579,1713794851669,-731.7597702,0.0001641,2]
[323185758,1713795038215,-154.84515485,0.00016305,2]
[323185760,1713795038225,-469.51863427,0.00016306,2]
[323185761,1713795038234,-169.27597088,0.00016307,2]
[323185762,1713795038243,-512.32371027,0.00016404,2]
[323186081,1713795043359,-13.91802134,0.00016404,2]
[323186083,1713795043369,-1201.98039691,0.00016547,2]
[323186085,1713795043379,-260.5,0.00016548,2]
[323186087,1713795043389,-180.21852112,0.00016549,2]
[323186089,1713795043404,-1020.16310011,0.00016549,2]
[323186091,1713795043415,-672.57719351,0.00017585,2]
[323186094,1713795043426,-111.58312938,0.00017589,2]
[323186096,1713795043440,-193.61324162,0.00017589,2]
[323186098,1713795043450,-300.0,0.00017672,2]
[323186101,1713795043462,-300.0,0.00017672,2]
[323186103,1713795043472,-2218.85808525,0.00017673,2]
[323186105,1713795043487,-7015.95027225,0.00017673,2]
[323186107,1713795043498,-155.3780445,0.000177,2]
[323186109,1713795043509,-154.6062945,0.000177,2]
[323186112,1713795043519,-153.0,0.000177,2]
[323186114,1713795043529,-207.7969067,0.000177,2]
[323186116,1713795043538,-153.0,0.000177,2]
[323186118,1713795043550,-203.544759,0.000177,2]